bitfinex/quotes_SOLUSD_20260306
["timestamp","ask_amount","ask_price","bid_price","bid_amount"]
[1772830766793,11.76000188,85.034,85.0,0.5]
[1772830766990,0.48665045,85.029,84.999,11.11654428]
[1772830767214,0.48665045,85.029,84.963,0.42648471]
[1772830767407,0.48665045,85.029,84.962,3.69383402]
[1772830767408,0.48665045,85.029,84.968,0.42648471]
[1772830768011,0.48665045,85.029,84.967,3.69383402]
[1772830768012,0.48665045,85.027,84.971,0.14216157]
[1772830768408,41.16291103,85.028,84.973,3.69383402]
[1772830768599,0.48665045,85.034,84.978,0.28432314]
[1772830768995,0.48665045,85.034,84.979,0.49387727]
[1772830770117,0.48665045,85.034,84.978,0.28432314]
[1772830770118,0.48665045,85.034,84.982,0.49387727]
[1772830770309,0.48665045,85.034,84.988,0.49387727]
[1772830770511,7.74809366,85.035,84.994,0.49387727]
[1772830770812,7.74809366,85.035,84.998,0.49387727]
[1772830771124,0.48665045,85.033,84.998,0.49387727]
[1772830772198,0.46365806,85.031,85.0,0.48278633]
[1772830772907,0.46365806,85.031,84.993,12.24841894]
[1772830773301,0.46365806,85.031,84.994,0.48278633]
[1772830773705,0.46365806,85.033,84.994,0.48278633]
[1772830774225,0.46365806,85.031,84.994,0.48278633]
[1772830774520,0.46365806,85.031,84.996,0.48278633]
[1772830774821,7.74809366,85.035,84.996,0.48278633]
[1772830774822,0.46365806,85.033,84.996,0.48278633]
[1772830775233,7.74809366,85.035,84.997,0.14216157]
[1772830775422,8.25546933,85.098,85.0,0.14216157]
[1772830775628,0.46365806,85.079,85.009,0.14216157]
[1772830775807,0.46365806,85.069,85.018,0.48278633]
[1772830776332,0.46365806,85.067,85.02,0.48278633]
[1772830777009,0.46365806,85.067,84.974,47.07290686]
[1772830777010,0.46365806,85.049,85.013,0.48278633]
[1772830777205,0.46365806,85.067,85.013,0.48278633]
[1772830777417,0.46365806,85.067,85.016,0.14216157]
[1772830777726,11.75530164,85.068,84.994,1.17655363]
[1772830777727,0.46365806,85.029,84.994,1.17655363]
[1772830777924,0.46365806,85.027,84.996,0.48278633]
[1772830778105,0.46365806,85.037,84.996,0.48278633]
[1772830778302,0.46365806,85.035,84.998,0.48278633]
[1772830779604,4.34723626,85.05,84.998,0.48278633]
[1772830779605,0.46365806,85.041,84.998,0.48278633]
[1772830780531,0.46365806,85.039,85.0,0.48278633]
[1772830781323,0.3,85.009,84.964,0.48278633]
[1772830781629,0.3,85.018,84.966,0.48278633]
[1772830782316,0.3,85.018,84.97,0.48278633]
[1772830782525,12.06230017,85.018,84.976,0.48278633]
[1772830782918,11.7614935,85.024,84.976,0.48278633]
[1772830783119,0.3,85.023,84.976,0.48278633]
[1772830784425,12.0605438,85.031,84.978,0.48278633]
[1772830784628,12.0605438,85.031,84.982,0.48278633]
[1772830784629,0.3,85.03,84.982,0.48278633]
[1772830785132,0.3,85.029,84.982,0.48278633]
[1772830785439,0.14216157,85.045,84.977,41.18761546]
[1772830785440,0.3,85.06,84.986,0.48278633]
[1772830785618,11.75751305,85.052,85.0,0.48278633]
[1772830785817,11.75751305,85.052,85.006,0.48278633]
[1772830786222,7.7961314,85.053,85.009,0.14216157]
[1772830786417,7.7961314,85.053,85.016,0.48278633]
[1772830786624,0.3,85.078,85.025,0.14216157]
[1772830786825,0.3,85.078,85.026,0.48278633]
[1772830787527,0.3,85.059,85.017,0.48278633]
[1772830787727,0.3,85.058,85.009,0.48278633]
[1772830787928,0.14216157,85.057,85.009,0.48278633]
[1772830788139,0.3,85.056,85.009,0.48278633]
[1772830788334,0.3,85.049,85.009,0.48278633]
[1772830788632,0.3,85.047,85.004,12.24680264]
[1772830788838,0.3,85.039,84.996,0.48278633]
[1772830790519,0.3,85.039,84.998,0.48278633]
[1772830790730,0.3,85.058,85.0,0.48278633]
[1772830791852,0.3,85.058,85.001,0.14216157]
[1772830792029,0.3,85.065,85.006,0.48278633]
[1772830792760,0.3,85.063,85.008,0.48278633]
[1772830794240,0.3,85.059,85.008,0.48278633]
[1772830794936,0.3,85.057,85.01,0.48278633]
[1772830795138,0.3,85.049,85.005,12.24679426]
[1772830795337,0.3,85.029,84.978,0.48278633]
[1772830795544,0.3,85.038,84.978,0.48278633]
[1772830795721,0.3,85.038,84.981,0.48278633]
[1772830795922,0.3,85.029,84.981,0.48278633]
[1772830796821,0.3,85.027,84.983,0.49240453]
[1772830797239,11.76018677,85.033,84.985,0.49240453]
[1772830798438,11.75875733,85.043,84.985,0.49240453]
[1772830798934,11.75875733,85.043,84.987,0.42648471]
[1772830799140,11.75875733,85.043,84.988,0.49240453]
[1772830799334,11.75875733,85.043,84.989,0.14216157]
[1772830799537,11.75875733,85.043,84.996,0.49240453]
[1772830799740,0.49954614,85.019,84.972,3.69383402]
[1772830800041,182.26073865,85.043,84.922,47.10167139]
[1772830800042,0.49954614,85.011,84.946,3.69383402]
[1772830800239,0.49954614,85.011,84.947,0.14216157]
[1772830800449,0.49954614,85.011,84.946,3.69383402]
[1772830800633,0.49954614,85.011,84.943,41.20410156]
[1772830800821,0.49954614,85.009,84.943,41.20410156]
[1772830801024,0.49954614,85.007,84.943,41.20410156]
[1772830801231,0.49954614,85.016,84.946,3.69383402]
[1772830801438,10.85308553,85.03,84.946,3.69383402]
[1772830801439,0.49954614,85.029,84.947,5.29752333]
[1772830801850,0.49954614,85.029,84.956,0.46596194]
[1772830802054,0.49954614,85.029,84.966,0.46596194]
[1772830802226,0.49954614,85.029,84.974,0.46596194]
[1772830802425,0.49954614,85.029,84.984,0.46596194]
[1772830802639,11.76000188,85.034,84.984,0.46596194]
[1772830802842,0.48590578,85.033,84.984,0.46596194]
[1772830803044,11.76027848,85.032,84.985,11.76678237]
[1772830803242,0.48590578,85.031,84.986,0.46596194]
[1772830803828,0.48590578,85.029,84.986,0.46596194]
[1772830805247,0.48590578,85.026,84.953,1.17712146]
[1772830805451,0.48590578,84.999,84.963,0.46596194]
[1772830807343,0.48590578,84.997,84.964,11.76969069]
[1772830808048,0.48590578,84.997,84.965,0.46596194]
[1772830808349,0.48590578,84.997,84.964,11.76969069]
[1772830809758,0.48590578,84.997,84.965,0.46596194]
[1772830809958,0.48590578,85.008,84.965,0.46596194]
[1772830811549,11.7637371,85.007,84.966,41.19294775]
[1772830811864,11.7637371,85.007,84.967,0.46596194]
[1772830811865,0.48590578,85.006,84.967,0.46596194]
[1772830812070,11.7637371,85.007,84.967,0.46596194]
[1772830812362,11.76319319,85.011,84.967,0.46596194]
[1772830812542,0.48590578,85.012,84.967,0.46596194]
[1772830812752,11.76235396,85.017,84.969,0.46596194]
[1772830812945,0.48590578,85.02,84.973,0.46596194]
[1772830813956,0.48590578,85.02,84.975,0.46596194]
[1772830814764,11.75989256,85.035,84.981,0.46596194]
[1772830815170,0.48590578,85.04,84.992,0.14216157]
[1772830815366,0.48590578,85.04,84.993,0.46596194]
[1772830815848,0.48590578,85.04,84.995,0.46596194]
[1772830816754,3.69383402,85.078,84.995,0.46596194]
[1772830816755,0.48590578,85.059,85.005,0.28432314]
[1772830817074,0.48590578,85.074,85.014,0.46596194]
[1772830818057,0.48590578,85.072,85.016,0.46596194]
[1772830818964,0.48590578,85.069,85.016,0.46596194]
[1772830819158,0.48590578,85.059,85.016,0.46596194]
[1772830819872,0.48590578,85.049,85.016,0.46596194]
[1772830820067,0.48590578,85.049,85.015,41.16920543]
[1772830820566,0.48590578,85.047,85.015,29.40657531]
[1772830820769,0.48590578,85.047,85.009,11.76346033]
[1772830821472,0.48590578,85.039,85.009,11.76346033]
[1772830821646,0.48590578,85.039,85.003,11.76427316]
[1772830822880,0.48590578,85.037,85.004,0.46596194]
[1772830823681,0.48590578,85.037,85.003,11.76427316]
[1772830823860,41.15761843,85.039,85.003,11.76427316]
[1772830823861,0.48590578,85.029,85.003,11.76427316]
[1772830824775,11.76083172,85.028,84.994,11.76553639]
[1772830824971,0.48590578,85.027,84.994,11.76553639]
[1772830826883,0.48590578,85.025,84.994,12.23149833]
[1772830827779,0.48590578,85.025,84.995,0.46596194]
[1772830829265,0.48590578,85.025,84.997,0.46596194]
[1772830829680,0.48590578,85.031,84.997,0.46596194]
[1772830833087,0.48893276,85.029,84.998,11.7649827]
[1772830833387,0.48893276,85.029,84.994,11.76548113]
[1772830833574,0.48893276,85.029,84.994,12.2528904]
[1772830834182,0.48893276,85.029,84.995,0.48740927]
[1772830835292,0.48893276,85.029,84.997,0.48740927]
[1772830835587,0.48893276,85.027,84.997,0.48740927]
[1772830836279,0.48893276,85.044,84.997,0.48740927]
[1772830837391,0.48893276,85.042,84.999,0.48740927]
[1772830838688,0.48893276,85.039,84.999,0.48740927]
[1772830840201,0.48893276,85.037,85.001,0.48740927]
[1772830842199,0.48893276,85.035,85.003,0.48740927]
[1772830842879,0.48893276,85.041,85.003,0.48740927]
[1772830845087,12.24810491,85.04,85.005,0.48740927]
[1772830845590,0.48893276,85.039,85.005,0.48740927]
[1772830849207,12.24838147,85.038,85.007,0.48740927]
[1772830849883,0.48893276,85.037,85.007,0.48740927]
[1772830850185,0.48893276,85.037,85.009,0.48740927]
[1772830850994,4.34617943,85.06,85.009,0.48740927]
[1772830851201,0.48893276,85.058,85.009,0.48740927]
[1772830852301,41.14790909,85.059,84.995,0.42648471]
[1772830852302,0.48893276,85.056,85.011,0.48740927]
[1772830854181,0.48893276,85.06,85.015,0.48740927]
[1772830856406,0.48893276,85.06,85.017,0.48612672]
[1772830856588,0.48893276,85.06,85.018,0.48612672]
[1772830856788,0.46961491,85.066,85.024,0.48612672]
[1772830858886,0.46961491,85.064,85.026,0.48612672]
[1772830861198,0.46961491,85.064,85.028,0.48612672]
[1772830861800,0.47049971,85.062,85.028,0.48612672]
[1772830863213,0.47049971,85.073,85.03,0.49829405]
[1772830863415,0.47049971,85.083,85.034,0.49829405]
[1772830863713,0.47049971,85.103,85.054,0.49829405]
[1772830864390,0.47049971,85.099,85.054,0.49829405]
[1772830865400,0.47049971,85.097,85.056,0.49829405]
[1772830867217,0.47049971,85.095,85.058,0.49829405]
[1772830869917,11.75170987,85.094,85.059,11.75654545]
[1772830870105,0.47049971,85.093,85.06,0.49829405]
[1772830872305,0.47049971,85.1,85.062,0.49829405]
[1772830873219,11.7510194,85.099,85.062,0.49829405]
[1772830873808,0.47049971,85.098,85.062,0.49829405]
[1772830874723,0.47049971,85.096,85.064,0.49829405]
[1772830875707,0.47049971,85.094,85.066,0.49829405]
[1772830878429,0.47049971,85.079,85.036,0.49829405]
[1772830880537,0.47049971,85.084,85.038,0.49829405]
[1772830882530,0.47049971,85.082,85.04,0.49829405]
[1772830882725,0.47049971,85.079,85.04,0.49829405]
[1772830884331,0.47049971,85.069,85.033,0.49829405]
[1772830884835,0.47049971,85.067,85.034,12.25829593]
[1772830885527,0.47049971,85.067,85.034,11.76000188]
[1772830886829,0.47049971,85.067,85.027,29.9004125]
[1772830886830,0.47049971,85.065,85.028,12.25912577]
[1772830887019,0.47049971,85.065,85.029,0.49829405]
[1772830889021,0.47049971,85.059,85.023,0.49829405]
[1772830890037,0.47049971,85.059,85.011,0.49829405]
[1772830890231,0.47049971,85.049,85.011,0.49829405]
[1772830890638,0.47049971,85.039,85.01,11.76332196]
[1772830891617,0.47049971,85.038,85.01,0.49829405]
[1772830893732,0.47931774,85.036,85.01,12.26152015]
[1772830894133,0.47931774,85.036,85.011,0.49712812]
[1772830895645,29.39732435,85.042,85.012,11.76304521]
[1772830895830,29.39732435,85.042,85.013,0.49712812]
[1772830896032,4.34050383,85.04,84.997,0.49712812]
[1772830896430,29.39732435,85.042,84.997,0.49712812]
[1772830897545,0.31308679,85.041,84.997,0.49712812]
[1772830897924,0.31308679,85.039,84.999,0.49712812]
[1772830900029,0.31308679,85.037,85.001,0.49712812]
[1772830904832,0.31308679,85.035,85.003,0.49712812]
[1772830906339,0.31308679,85.035,84.986,104.2]
[1772830906543,0.31308679,85.035,84.93,47.51057741]
[1772830906544,4.34050383,84.98,84.965,0.14216157]
[1772830906739,0.47931774,84.979,84.931,8.63991894]
[1772830906937,4.34050383,84.97,84.931,8.63991894]
[1772830907142,0.47931774,84.977,84.931,8.63991894]
[1772830907561,0.47931774,84.977,84.932,11.77404091]
[1772830907769,0.47931774,84.977,84.931,8.63991894]
[1772830908695,0.47931774,84.977,84.94,0.69712812]
[1772830908840,0.47931774,84.975,84.941,0.49712812]
[1772830910744,0.47931774,84.973,84.941,0.49712812]
[1772830910944,11.76777313,84.978,84.941,0.49712812]
[1772830911159,11.76777313,84.978,84.943,0.49712812]
[1772830911537,29.41504929,84.991,84.942,11.77273904]
[1772830911538,12.24554631,84.989,84.945,0.49712812]
[1772830912650,11.76622857,84.989,84.945,0.49712812]
[1772830913044,11.76622857,84.989,84.947,0.49712812]
[1772830914638,29.41096622,85.003,84.949,0.49712812]
[1772830914639,11.76567482,84.993,84.949,0.49712812]
[1772830914842,11.76567482,84.993,84.955,0.49712812]
[1772830915047,11.76505216,84.998,84.956,41.1977965]
[1772830915251,11.76505216,84.998,84.957,0.49712812]
[1772830915645,29.44280092,84.994,84.957,0.49712812]
[1772830917347,17.67719892,84.994,84.961,0.45494481]
[1772830917553,17.67719892,84.994,84.965,0.45494481]
[1772830918671,11.76287641,85.014,84.968,0.45494481]
[1772830918840,0.45595459,85.027,84.976,0.45494481]
[1772830919039,0.45595459,85.027,84.984,0.45494481]
[1772830919244,0.45595459,85.027,84.986,0.45494481]
[1772830919245,11.76110836,85.026,84.986,0.45494481]
[1772830920753,11.76110836,85.026,84.988,0.45494481]
[1772830920956,0.45595459,85.025,84.988,0.45494481]
[1772830923463,11.76138502,85.024,84.99,0.48135174]
[1772830924352,12.22126334,85.024,84.99,0.48135174]
[1772830924563,12.22126334,85.024,84.992,0.48135174]
[1772830924761,0.45987832,85.023,84.992,0.48135174]
[1772830926669,4.34050383,85.04,84.966,0.14216157]
[1772830926670,0.45987832,85.035,84.994,0.48135174]
[1772830927266,12.21960361,85.036,84.994,0.48135174]
[1772830927452,0.45987832,85.035,84.994,0.48135174]
[1772830928969,0.45987832,85.033,84.996,0.48135174]
[1772830932171,0.45987832,85.031,84.998,0.48135174]
[1772830934166,0.45987832,85.029,85.0,0.48135174]
[1772830936975,0.45987832,85.027,85.0,0.48135174]
[1772830938482,0.45987832,85.027,85.002,0.48135174]
[1772830939380,0.45987832,85.025,85.002,0.48135174]
[1772830939887,0.45987832,85.025,84.996,0.48135174]
[1772830941163,0.45987832,85.023,84.998,0.48135174]
[1772830942478,0.45987832,85.021,85.0,0.48135174]
[1772830943980,0.45987832,85.021,84.996,11.76516314]
[1772830944278,0.45987832,85.021,84.997,0.48135174]
[1772830944861,0.45987832,85.019,84.997,0.48135174]
[1772830946979,0.45987832,85.023,84.996,11.76516314]
[1772830948269,0.45987832,85.021,84.996,11.76516314]
[1772830949786,0.45987832,85.021,84.996,12.24651488]
[1772830951276,0.45987832,85.019,84.996,12.24651488]
[1772830952102,11.76149171,85.024,84.997,0.45297564]
[1772830953392,0.45016322,85.024,84.999,0.45297564]
[1772830954684,0.45016322,85.024,84.971,104.2]
[1772830954685,0.45016322,85.024,84.987,0.45297564]
[1772830954909,0.45016322,85.019,84.97,0.45297564]
[1772830955474,0.45016322,85.017,84.972,0.45297564]
[1772830960186,0.45016322,85.015,84.974,0.45297564]
[1772830962799,0.45016322,85.013,84.976,0.45297564]
[1772830964583,11.76197262,85.02,84.976,0.45297564]
[1772830964778,0.45016322,85.026,84.98,0.14216157]
[1772830965102,0.45016322,85.026,84.985,0.45297564]
[1772830965900,11.76124669,85.025,84.987,0.45297564]
[1772830967303,0.45016322,85.024,84.987,0.45297564]
[1772830968904,0.45016322,85.022,84.989,0.45297564]
[1772830973910,0.45016322,85.022,84.991,0.45297564]
[1772830974694,11.76173283,85.022,84.991,0.45297564]
[1772830974893,0.45016322,85.021,84.991,0.45297564]
[1772830977214,0.45016322,85.021,84.991,0.45297564]
[1772830978311,0.45016322,85.021,84.99,41.18131544]
[1772830978312,0.45016322,85.021,84.993,0.47284202]
[1772830979211,0.47494039,85.019,84.993,0.47284202]
[1772830979393,0.47494039,85.019,84.988,11.76626363]
[1772830979801,0.47494039,85.019,84.989,0.47284202]
[1772830980399,0.47494039,85.017,84.99,11.76609012]
[1772830981623,0.47494039,85.017,84.985,11.76675601]
[1772830982396,0.49729546,85.015,84.985,11.76675601]
[1772830984003,0.49729546,85.015,84.985,12.22152595]
[1772830984214,0.49729546,85.015,84.986,0.45476994]
[1772830985217,0.49729546,85.013,84.986,0.45476994]
[1772830986001,0.49729546,85.013,84.988,0.45476994]
[1772830987611,29.4008369,85.032,84.983,29.41753589]
[1772830987612,0.49729546,85.018,84.99,0.45476994]
[1772830988191,0.49729546,85.018,84.985,0.45476994]
[1772830989819,0.49729546,85.016,84.987,0.45476994]
[1772830992426,0.49729546,85.014,84.989,0.45476994]
[1772830994120,11.76290684,85.013,84.989,0.45476994]
[1772830994308,0.49729546,85.012,84.989,0.45476994]
[1772830995237,0.49729546,85.012,84.991,0.45476994]
[1772830996112,11.76318358,85.011,84.991,0.45476994]
[1772830996318,12.26047904,85.011,84.991,0.45476994]
[1772830996929,0.49729546,85.01,84.991,0.45476994]
[1772830998923,0.49729546,85.021,84.993,0.45476994]
[1772830999318,11.76166168,85.022,84.993,0.45476994]
[1772831000748,11.76121026,85.026,84.995,0.45476994]
[1772831002143,0.49729546,85.025,84.995,0.45476994]
[1772831002824,0.49729546,85.025,84.996,11.76525954]
[1772831002825,11.76138502,85.024,84.996,11.76525954]
[1772831003024,0.49729546,85.023,84.995,0.45476994]
[1772831003226,0.49729546,85.023,84.997,0.45476994]
[1772831004229,0.49729546,85.023,84.985,0.45476994]
[1772831004945,0.49729546,85.021,84.987,0.45476994]
[1772831007639,0.49729546,85.021,84.989,0.45476994]
[1772831008028,0.49729546,85.019,84.989,0.45476994]
[1772831009241,0.49729546,85.019,84.984,0.45476994]
[1772831009735,0.49729546,85.017,84.985,11.76678237]
[1772831010965,0.49729546,85.015,84.985,11.76678237]
[1772831011443,0.49729546,85.015,84.985,12.22155231]
[1772831012227,0.49729546,85.015,84.986,0.4525856]
[1772831012928,58.79501242,85.042,84.966,9.95539084]
[1772831012929,0.49845678,85.013,84.975,0.4525856]
[1772831013445,0.15663986,85.017,84.973,0.14216157]
[1772831013637,11.76229826,85.018,84.976,0.4525856]
[1772831014828,0.42648471,85.037,84.978,0.4525856]
[1772831015531,0.15818308,85.036,84.978,0.4525856]
[1772831017245,0.15818308,85.034,84.98,0.4525856]
[1772831018144,41.16000658,85.034,84.981,11.76733622]
[1772831018450,0.15818308,85.032,84.982,0.4525856]
[1772831020750,0.15818308,85.03,84.984,0.4525856]
[1772831024941,0.15818308,85.028,84.984,0.4525856]
[1772831027544,0.15818308,85.028,84.986,0.4525856]
[1772831028936,0.15818308,85.028,84.988,0.4525856]
[1772831039357,0.15818308,85.028,84.99,0.49919675]
[1772831040369,0.15818308,85.028,84.992,0.49919675]
[1772831042952,0.15818308,85.028,84.994,0.49364168]
[1772831043353,0.15818308,85.038,84.994,0.49364168]
[1772831045769,0.15818308,85.038,84.996,0.49364168]
[1772831047176,0.15818308,85.038,84.997,11.76512112]
[1772831047477,0.15818308,85.038,84.998,0.49364168]
[1772831050174,0.15818308,85.038,84.999,11.76484429]
[1772831050480,0.15818308,85.038,85.0,0.49364168]
[1772831055479,0.15818308,85.038,85.002,0.49364168]
[1772831057474,41.15710253,85.04,85.004,0.49364168]
[1772831057658,0.15818308,85.039,85.004,0.49364168]
[1772831059660,0.15818308,85.039,85.006,0.49364168]
[1772831061977,0.15818308,85.039,85.008,0.49364168]
[1772831064790,0.15818308,85.039,85.01,0.49364168]
[1772831066179,0.15818308,85.029,84.999,0.49364168]
[1772831066380,0.15818308,85.029,84.987,11.76650546]
[1772831066584,0.15818308,85.029,84.988,0.49364168]
[1772831068164,0.15818308,85.028,84.99,0.49364168]
[1772831070075,0.15818308,85.028,84.991,11.76595168]
[1772831070284,0.15818308,85.019,84.986,0.49364168]
[1772831072166,0.15818308,85.018,84.986,0.49364168]
[1772831073893,0.15818308,85.018,84.988,0.46904476]
[1772831074390,0.15818308,85.018,84.99,0.46904476]
[1772831080288,41.3045885,85.029,84.991,0.47338797]
[1772831080289,11.76069341,85.029,84.991,0.47338797]
[1772831080592,11.91887649,85.029,84.991,0.47338797]
[1772831080772,0.15818308,85.028,84.991,0.47338797]
[1772831081391,0.15818308,85.028,84.993,0.47338797]
[1772831081973,0.42648471,85.037,84.966,68.80218442]
[1772831081974,0.48942529,85.019,84.966,9.81322927]
[1772831083499,41.16775271,85.018,84.968,11.76913661]
[1772831083700,0.48942529,85.017,84.968,11.76913661]
[1772831084079,0.48942529,85.017,84.969,0.47338797]
[1772831085793,0.48942529,85.014,84.969,0.47338797]
[1772831086386,0.48942529,85.009,84.969,0.47338797]
[1772831088839,0.48942529,85.009,84.966,9.81322927]
[1772831088840,0.48942529,85.007,84.971,0.47338797]
[1772831091514,12.25330078,85.006,84.973,0.47338797]
[1772831091811,0.48942529,85.005,84.973,0.47338797]
[1772831092513,11.76387549,85.006,84.973,0.47338797]
[1772831094116,11.76254847,85.016,84.975,0.47338797]
[1772831094814,11.76181398,85.021,84.975,0.47338797]
[1772831096616,0.49142997,85.021,84.977,0.47100144]
[1772831098317,12.25336833,85.02,84.979,0.47100144]
[1772831098811,0.49142997,85.019,84.979,0.47100144]
[1772831100297,11.76221506,85.018,84.98,41.18616143]
[1772831100497,11.76221506,85.018,84.981,0.47100144]
[1772831100719,12.25364503,85.018,84.981,0.47100144]
[1772831100899,0.49142997,85.017,84.981,0.47100144]
[1772831103521,11.76249176,85.016,84.982,11.76719775]
[1772831103846,11.76249176,85.016,84.969,104.2]
[1772831103847,0.47700291,85.009,84.97,0.45483065]
[1772831106720,0.47700291,85.007,84.972,0.45483065]
[1772831107714,0.47700291,85.007,84.967,12.22406563]
[1772831107918,0.47700291,84.999,84.968,0.45483065]
[1772831108833,0.47700291,84.999,84.97,0.45483065]
[1772831109010,0.47700291,84.997,84.97,0.45483065]
[1772831110917,0.47700291,84.997,84.972,0.45483065]
[1772831111422,0.47700291,84.996,84.972,0.45483065]
[1772831113217,0.47700291,85.003,84.974,0.45483065]
[1772831115529,0.47700291,85.001,84.974,0.45483065]
[1772831117930,0.47700291,84.999,84.976,0.45483065]
[1772831120210,0.47700291,84.997,84.976,0.45483065]
[1772831121225,0.47700291,84.997,84.978,0.45483065]
[1772831123227,0.47700291,84.995,84.978,0.45483065]
[1772831123422,0.47700291,84.995,84.974,0.45483065]
[1772831125232,58.80255888,85.031,84.967,0.45483065]
[1772831125233,0.47700291,84.993,84.967,0.45483065]
[1772831126739,0.47700291,84.991,84.969,0.45483065]
[1772831128339,0.42648471,85.019,84.969,0.45483065]
[1772831128539,0.47700291,85.015,84.971,0.45483065]
[1772831130322,0.47700291,85.013,84.973,0.45483065]
[1772831131525,0.47700291,85.013,84.997,0.2]
[1772831131729,0.47700291,85.013,84.984,0.45483065]
[1772831135136,0.14216157,85.035,84.966,9.81322927]
[1772831135137,0.4535129,84.999,84.966,10.28643954]
[1772831135645,0.4535129,84.999,84.967,0.47321027]
[1772831136435,0.4535129,84.997,84.967,0.47321027]
[1772831138936,0.4535129,84.995,84.967,0.47321027]
[1772831139949,0.4535129,84.995,84.968,0.47321027]
[1772831141934,0.4535129,84.993,84.968,0.47321027]
[1772831143235,0.4535129,84.993,84.97,0.47321027]
[1772831144251,0.4535129,84.991,84.97,0.47321027]
[1772831146249,0.4535129,84.989,84.967,0.47321027]
[1772831148949,0.4535129,84.987,84.967,0.47321027]
[1772831152253,0.4535129,84.985,84.966,9.81322927]
[1772831152857,0.4535129,84.985,84.968,0.47321027]
[1772831154563,11.76692083,84.984,84.968,0.47321027]
[1772831155375,0.4535129,84.999,84.968,0.47321027]
[1772831156852,0.47607983,84.997,84.968,0.47321027]
[1772831157978,0.47607983,84.997,84.966,9.81322927]
[1772831158868,0.47607983,84.995,84.966,9.81322927]
[1772831159779,11.76525954,84.996,84.966,9.81322927]
[1772831159961,0.47607983,84.995,84.968,0.49028486]
[1772831161458,0.28432314,85.009,84.968,0.49028486]
[1772831161459,0.47607983,84.993,84.968,0.49028486]
[1772831164876,11.76581325,84.992,84.968,0.49028486]
[1772831165059,0.47524645,84.991,84.968,0.49028486]
[1772831166284,0.47524645,84.991,84.966,9.81322927]
[1772831167158,0.47524645,84.989,84.968,0.49030966]
[1772831167358,0.47524645,84.989,84.967,11.76927513]
[1772831167565,0.47524645,84.989,84.966,9.81322927]
[1772831168277,0.47524645,84.989,84.966,10.30353893]
[1772831168480,0.47524645,84.989,84.967,0.49030966]
[1772831168898,0.47524645,85.022,84.967,0.49030966]
[1772831169185,0.47524645,85.017,84.969,0.49030966]
[1772831170782,11.76249176,85.016,84.97,11.76885959]
[1772831170986,0.47524645,85.015,84.971,0.49030966]
[1772831173286,0.47524645,85.013,84.973,0.49030966]
[1772831176287,0.47524645,85.011,84.975,0.49030966]
[1772831176876,0.47524645,85.009,84.975,0.49030966]
[1772831179381,0.47524645,85.007,84.977,0.49030966]
[1772831181875,0.47524645,85.005,84.967,0.49030966]
[1772831185391,0.47524645,85.003,84.969,0.49030966]
[1772831187707,0.47524645,85.001,84.971,0.49030966]
[1772831190612,0.47524645,85.001,84.966,39.23676338]
[1772831190613,0.47524645,84.999,84.973,0.49030966]
[1772831191897,0.47139184,85.009,84.973,0.49030966]
[1772831192900,11.76359872,85.008,84.974,11.76830559]
[1772831193094,0.47139184,85.007,84.975,0.48299537]
[1772831195896,12.23526733,85.006,84.977,0.48299537]
[1772831196290,0.47139184,85.005,84.977,0.48299537]
[1772831196901,29.40606312,85.017,84.979,0.48299537]
[1772831197101,0.47139184,85.012,84.979,0.48299537]
[1772831200285,0.47139184,85.012,84.981,0.48299537]
[1772831200808,0.47139184,85.01,84.981,0.48299537]
[1772831203409,0.47139184,85.01,84.983,0.48299537]
[1772831205403,0.47139184,85.01,84.985,0.48299537]
[1772831207913,0.47139184,85.008,84.987,0.48299537]
[1772831209317,0.47139184,85.026,84.987,0.48299537]
[1772831210713,4.3483636,85.02,84.968,0.42648471]
[1772831210918,0.47139184,85.019,84.972,0.48299537]
[1772831211816,41.16387927,85.026,84.971,0.14216157]
[1772831211817,0.47139184,85.017,84.975,0.14216157]
[1772831212009,0.47139184,85.017,84.976,0.48299537]
[1772831213202,0.47139184,85.015,84.978,0.48299537]
[1772831215315,0.47139184,85.013,84.98,0.48299537]
[1772831218429,0.46815671,85.011,84.982,0.45602299]
[1772831220624,11.76332196,85.01,84.982,0.45602299]
[1772831220826,0.46815671,85.009,84.982,0.45602299]
[1772831221023,0.46815671,85.009,84.977,0.45602299]
[1772831221811,0.46815671,85.009,84.967,11.76927513]
[1772831221812,0.46815671,85.009,84.968,0.4736222]
[1772831222624,0.48217663,85.007,84.968,0.4736222]
[1772831223006,0.48217663,85.007,84.969,11.7689981]
[1772831223204,0.48217663,85.007,84.97,0.4736222]
[1772831224611,0.48217663,85.005,84.97,0.4736222]
[1772831226622,0.28432314,85.003,84.97,0.4736222]
[1772831226824,0.48217663,84.999,84.966,9.81322927]
[1772831229618,0.48217663,84.997,84.967,0.4736222]
[1772831232241,0.48217663,84.995,84.968,0.4736222]
[1772831233538,0.48217663,84.993,84.968,0.4736222]
[1772831236338,11.76581325,84.992,84.968,0.4736222]
[1772831236542,0.48217663,84.991,84.968,0.4736222]
[1772831239426,0.48217663,84.989,84.968,0.4736222]
[1772831241349,0.48217663,84.989,84.97,0.4736222]
[1772831241535,0.48217663,84.987,84.97,0.4736222]
[1772831243146,0.48217663,84.987,84.966,9.81322927]
[1772831243651,0.48217663,84.985,84.966,9.81322927]